Cogmind - Beta 13 @@@ ROGUE MODE // 2024.04.07 @ 23:28:08 Player: Demo Result: Destroyed by Y-45 Defender with Heavy Assault Rifle Performance ------------- Evolutions (2) 1000 Regions Visited (6) 1200 Robots Destroyed (46) 230 Value Destroyed (1691) 1691 Prototype IDs (2) 40 Alien Tech Used (0) 0 Bonus (526) 526 TOTAL SCORE: 4687 Bonus ------- High Alert Combat Kills 126 Entered Garrisons 400 Cogmind --------- Core Integrity 0/550 Matter 290/300 Energy 100/100 System Corruption 4% Temperature Cool (1) Movement Flying (35) Location -8/Garrison Parts ------- > --- POWER (1) -------- (None) > --- PROPULSION (4) --- Airjet Surge Thruster > --- UTILITY (4) ------ Visual Processing Unit Terrain Scan Processor Advanced System Shield > --- WEAPON (2) ------- Axe > --- INVENTORY (5) ---- Improved Ion Engine High-capacity Matter Pod (200) Improved Sensor Array Rocket Launcher Plasma Cutter Peak State ------------ > --- POWER ------------ (None) > --- PROPULSION ------- Improved Hover Unit Airjet Cesium-ion Thruster Surge Thruster > --- UTILITY ---------- Visual Processing Unit Terrain Scan Processor Advanced System Shield > --- WEAPON ----------- Axe > --- INVENTORY -------- Improved Ion Engine High-capacity Matter Pod Improved Sensor Array Rocket Launcher Plasma Cutter [Rating: 25] Favorites ----------- Power Improved Ion Engine Engine Improved Ion Engine Power Core Light Nuclear Core Propulsion Light Treads Treads Light Treads Wheel Wheel Hover Unit Improved Hover Unit Flight Unit Surge Thruster Utility Seismic Detector Device Seismic Detector Storage Small Storage Unit Processor Advanced Visual Processing Unit Hackware Advanced System Shield Protection Light Armor Plating Weapon Assault Cannon Energy Gun Beam Rifle Ballistic Gun Light Assault Rifle Ballistic Cannon Assault Cannon Special Weapon Plasma Cutter Impact Weapon Heavy Flail Slashing Weapon Axe Build | -11 -10 -9 -8 -8 -8 -8 ------- Run | Yrd Mat Mat Mat Gar Mat Gar Slots Evolved 4 | . . 2 2 . . . Power . | . . . . . . . Propulsion 2 | . . 1 1 . . . Utility 2 | . . 1 1 . . . Weapon . | . . . . . . . Parts Attached 68 | 8 3 18 6 25 7 1 Power 5 | . . 1 1 3 . . Engine 3 | . . 1 1 1 . . Core 2 | . . . . 2 . . Reactor . | . . . . . . . Propulsion 27 | 4 3 8 1 8 3 . Treads 11 | 2 1 4 . 4 . . Leg . | . . . . . . . Wheel 10 | 2 1 4 . 3 . . Hover 4 | . 1 . 1 . 2 . Flight 2 | . . . . 1 1 . Utility 13 | 2 . 4 1 3 2 1 Device 5 | 1 . 1 1 2 . . Storage 1 | 1 . . . . . . Processor 5 | . . 3 . . 2 . Hackware 1 | . . . . . . 1 Protection 1 | . . . . 1 . . Artifact . | . . . . . . . Weapon 23 | 2 . 5 3 11 2 . Energy Gun 6 | . . 1 1 4 . . Energy Cannon . | . . . . . . . Ballistic Gun 6 | 2 . 3 . 1 . . Ballistic Cannon 4 | . . 1 2 1 . . Launcher . | . . . . . . . Special Weapon 1 | . . . . 1 . . Impact Weapon 5 | . . . . 4 1 . Slashing Weapon 1 | . . . . . 1 . Piercing Weapon . | . . . . . . . Special Melee Weapon . | . . . . . . . Unidentified Prototypes 2 | . . 1 1 . . . Parts Lost 20 | . . 4 1 13 . 2 Power 2 | . . . 1 1 . . Propulsion 12 | . . 3 . 7 . 2 Utility 4 | . . . . 4 . . Weapon 2 | . . 1 . 1 . . Highest Loss Streak 9 | . . 2 1 9 . 2 To Critical Strikes . | . . . . . . . Average Slot Usage (%) 82 | . 70 84 92 84 43 61 Engine 4 | . . . 8 4 . . Core 1 | . . . . 3 . . Treads 13 | . 7 16 18 12 . . Wheel 9 | . 12 12 9 10 . . Hover 3 | . 6 1 4 1 14 14 Flight 1 | . . . . . 11 14 Device 14 | . 14 11 15 17 . . Storage 8 | . 14 11 9 7 . . Processor 4 | . . 10 9 . 8 18 Protection 3 | . . . . 6 . . Energy Gun 4 | . . 3 5 5 . . Ballistic Gun 4 | . 15 15 . . . . Ballistic Cannon 5 | . . . 12 6 . . Impact Weapon 2 | . . . . 4 1 . Naked Turns . | . . . . . . . Heaviest Build 25 | 8 8 19 19 25 3 3 Greatest Support 49 | 16 10 40 29 49 8 9 Greatest Overweight (x) 4 | . . 2 1 4 . . Average Overweight (x) . | . . . . 1 . . Largest Inventory Capacity 8 | 8 8 8 8 8 5 5 Average Capacity 7 | 6 8 8 8 7 5 5 Most Carried 8 | 3 7 8 8 8 5 5 Average Carried 7 | . 4 7 8 7 4 5 Final Capacity 8 | 8 8 8 8 5 5 5 Final Carried 8 | 3 7 8 8 5 5 5 Class Distribution -------------------- 58% | Scavenger-Mutant 39% | Mutant Dominant Class ---------------- Mutant | -10/Materials Mutant | -9/Materials Scavenger-Mutant | -8/Materials Scavenger-Mutant | -8/Garrison Mutant | -8/Materials Mutant | -8/Garrison Resources | -11 -10 -9 -8 -8 -8 -8 ----------- Run | Yrd Mat Mat Mat Gar Mat Gar Matter Collected 1618 | 279 . 301 98 748 192 . Remotely . | . . . . . . . Salvage Created 1483 | 154 . 422 194 682 31 . Parts 84 | 14 . 31 11 25 3 . Haulers Intercepted . | . . . . . . . Recyclers Shooed 2 | 1 . . 1 . . . Parts Field Recycled . | . . . . . . . Retrieved Matter . | . . . . . . . Parts Self-Destructed . | . . . . . . . Prevented . | . . . . . . . Kills | -11 -10 -9 -8 -8 -8 -8 ------- Run | Yrd Mat Mat Mat Gar Mat Gar Combat Hostiles Destroyed 38 | . . 11 5 22 . . Melee 5 | . . . . 5 . . Guns 15 | . . 10 1 4 . . Cannons 12 | . . 1 4 7 . . Classes Destroyed 9 | 2 . 3 2 2 . . Tunneler 4 | 4 . . . . . . Recycler 2 | 1 . . 1 . . . Watcher 2 | . . . 1 . 1 . Swarmer 13 | . . 3 3 7 . . Cutter 2 | . . . . 2 . . Grunt 10 | . . 3 1 6 . . Brawler 1 | . . . 1 . . . Sentry 10 | . . 5 . 5 . . Programmer 2 | . . . . 2 . . Best Kill Streak 6 | 3 . 3 4 6 1 . Combat Bots Only 6 | . . 3 3 6 . . Max Kills in Single Turn 2 | 1 . 1 2 1 1 . Gunslinging . | . . . . . . . Exploded . | . . . . . . . Melee 1 | . . . . 1 . . Uniques/NPCs Destroyed . | . . . . . . . Combat | -11 -10 -9 -8 -8 -8 -8 -------- Run | Yrd Mat Mat Mat Gar Mat Gar Hostile Shots Fired 284 | . . 59 31 170 6 18 Missed 77 | . . 10 10 42 5 10 Damage Taken 2887 | . . 567 311 1869 17 123 Core 631 | . . 74 45 462 . 50 Absorbed by Shields . | . . . . . . . Core Remaining (%) 93 | 100 100 81 . . . . Volleys Fired 182 | 18 . 50 16 98 . . Largest 2 | 2 . 2 2 2 . . Hottest 130 | 40 . 100 100 130 . . Shots Fired 343 | 36 . 100 31 176 . . Gun 220 | 36 . 98 9 77 . . Cannon 93 | . . 2 22 69 . . Launcher . | . . . . . . . Special 30 | . . . . 30 . . Kinetic 228 | 36 . 89 22 81 . . Thermal 115 | . . 11 9 95 . . Explosive . | . . . . . . . Electromagnetic . | . . . . . . . Robot Hit Streak 22 | 8 . 22 5 15 . . Robot Miss Streak 6 | 3 . 6 2 2 . . Penetration Max . | . . . . . . . Secondary Targets . | . . . . . . . Shots Hit Robots 252 | 23 . 70 13 145 1 . Core Hits 81 | 7 . 23 9 41 1 . Critical Kills 3 | 1 . . . 2 . . Critical Parts Destroyed 8 | 1 . 1 . 6 . . Critical Strikes 21 | 2 . 2 2 15 . . Burn 5 | . . 1 1 3 . . Destroy 3 | 2 . 1 . . . . Blast 4 | . . . 1 3 . . Smash 8 | . . . . 8 . . Sever 1 | . . . . 1 . . Melee Attacks 66 | . . . . 60 1 5 Impact 60 | . . . . 60 . . Slashing 6 | . . . . . 1 5 Piercing . | . . . . . . . Sneak Attacks . | . . . . . . . Combat Hostiles . | . . . . . . . Follow-up Attacks 8 | . . . . 8 . . Damage Inflicted 4330 | 196 . 642 353 3092 47 . Guns 1574 | 196 . 601 88 689 . . Cannons 1155 | . . 41 260 854 . . Explosions . | . . . . . . . Melee 1308 | . . . . 1261 47 . Ramming 5 | . . . 5 . . . Kinetic 1972 | 196 . 538 260 978 . . Thermal 1045 | . . 104 88 853 . . Explosive . | . . . . . . . Electromagnetic . | . . . . . . . Impact 1261 | . . . . 1261 . . Slashing 47 | . . . . . 47 . Piercing . | . . . . . . . Highest Corruption 4 | . . . . 4 4 4 Average Corruption 3 | . . . . 3 4 4 Corruption Purged . | . . . . . . . Corruption Blocked . | . . . . . . . Effects 6 | . . . . 4 2 . Message Errors 1 | . . . . 1 . . Matter Fused 3 | . . . . 2 1 . Heat Flow Errors 1 | . . . . . 1 . Data Loss (major) 1 | . . . . 1 . . Overload Shots . | . . . . . . . Overflow Damage 460 | . . . 8 452 . . Projectiles 18 | . . . 8 10 . . Explosions . | . . . . . . . Melee 442 | . . . . 442 . . Knockbacks 10 | . . . 5 5 . . Impact 1 | . . . . 1 . . Kinetic 9 | . . . 5 4 . . Secondary . | . . . . . . . Self-Inflicted Damage . | . . . . . . . Shots . | . . . . . . . Rammed 2 | . . . 2 . . . Targets Rammed 2 | . . . 2 . . . Kicked . | . . . . . . . Crushed . | . . . . . . . Highest Temperature 387 | . . 75 237 387 170 . Average Temperature 86 | . . 29 114 92 85 . Received Heat Transfer 771 | . . 186 27 495 9 54 Effects 2 | . . . 1 1 . . Energy Bleed 1 | . . . 1 . . . Interference 1 | . . . . 1 . . Siege Activations . | . . . . . . . Robots Corrupted . | . . . . . . . Combat Hostiles . | . . . . . . . Parts Fried 6 | . . . . 6 . . Impact Corruptions 18 | . . . . 18 . . Robots Melted 1 | . . . . 1 . . Combat Hostiles 1 | . . . . 1 . . Parts Melted 3 | . . 2 . 1 . . Heat Transferred 3046 | . . 333 296 2417 . . Parts Sabotaged . | . . . . . . . Parts Stolen . | . . . . . . . Parts Stripped . | . . . . . . . Power Chain Reactions . | . . . . . . . Alert | -11 -10 -9 -8 -8 -8 -8 ------- Run | Yrd Mat Mat Mat Gar Mat Gar Peak Influence 726 | 25 31 439 293 726 469 376 Initial 353 | . 16 13 122 79 353 307 Average 267 | 11 24 203 183 359 396 367 Maximum Alert Level 3 | . . 2 1 3 2 1 Low Security (%) 39 | 100 100 41 48 27 . . Level 1 38 | . . 52 51 32 62 100 Level 2 19 | . . 6 . 33 37 . Level 3 2 | . . . . 6 . . Level 4 . | . . . . . . . Level 5 . | . . . . . . . High Security . | . . . . . . . Max Security . | . . . . . . . Squads Dispatched 5 | . . 1 3 . 1 . Investigation 2 | . . 1 1 . . . Extermination . | . . . . . . . Reinforcement 3 | . . . 2 . 1 . Assault . | . . . . . . . Garrison . | . . . . . . . Intercept . | . . . . . . . Searches Triggered . | . . . . . . . Construction Impeded . | . . . . . . . Haulers Reinforced . | . . . . . . . Active Scanning Responses . | . . . . . . . Cargo Convoy Interrupts . | . . . . . . . Stealth | -11 -10 -9 -8 -8 -8 -8 --------- Run | Yrd Mat Mat Mat Gar Mat Gar Distress Signals 3 | . . . 2 . 1 . Communications Jammed . | . . . . . . . Distress Signals . | . . . . . . . Times Spotted 79 | . 2 21 16 24 7 9 Peak Tracking Total 9 | . 2 5 9 6 7 8 Tactical Retreats 12 | . . 6 3 2 1 . Traps | -11 -10 -9 -8 -8 -8 -8 ------- Run | Yrd Mat Mat Mat Gar Mat Gar Traps Triggered 2 | . . . . 2 . . Indirectly . | . . . . . . . Trap Hack Attempts . | . . . . . . . Triggered . | . . . . . . . Disarmed . | . . . . . . . Reprogrammed . | . . . . . . . Reused . | . . . . . . . Traps Extracted . | . . . . . . . Installed . | . . . . . . . Triggered . | . . . . . . . Machines | -11 -10 -9 -8 -8 -8 -8 ---------- Run | Yrd Mat Mat Mat Gar Mat Gar Machines Disabled 2 | . . . . 2 . . Max in Single Turn 1 | . . . . 1 . . Garrison Relay 2 | . . . . 2 . . Machines Repaired . | . . . . . . . Machines Dismantled . | . . . . . . . Machines Sabotaged . | . . . . . . . Overloaded Fab Kills . | . . . . . . . Hacking | -11 -10 -9 -8 -8 -8 -8 --------- Run | Yrd Mat Mat Mat Gar Mat Gar Machines Accessed 19 | . 2 5 4 2 5 1 Terminals 16 | . 2 4 3 2 4 1 Fabricators . | . . . . . . . Repair Stations . | . . . . . . . Recycling Units . | . . . . . . . Scanalyzers 1 | . . 1 . . . . Garrison Access 2 | . . . 1 . 1 . Total Hacks 53 | . 4 19 13 4 11 2 Successful 22 | . 2 10 4 1 4 1 Failed 31 | . 2 9 9 3 7 1 Catastrophic 9 | . 1 2 3 1 1 1 Database Lockouts . | . . . . . . . Manual 17 | . 4 6 7 . . . Terminals 44 | . 4 13 11 4 10 2 Fabricators . | . . . . . . . Repair Stations . | . . . . . . . Recycling Units . | . . . . . . . Scanalyzers 6 | . . 6 . . . . Garrison Access 3 | . . . 2 . 1 . Terminal Hacks 16 | . 2 6 3 1 3 1 Part Schematic 1 | . . 1 . . . . Robot Analysis 2 | . 2 . . . . . Branch Access Points 1 | . . 1 . . . . Emergency Access Points 1 | . . . 1 . . . Locate Traps 2 | . . . 1 . 1 . Dispatch Records 2 | . . 1 . . 1 . Maintenance Status 2 | . . 1 . . 1 . Surveillance Status 1 | . . 1 . . . . Investigation Status 1 | . . 1 . . . . Recall Investigation 1 | . . . 1 . . . Garrison Registry 1 | . . . . . . 1 Security Stations 1 | . . . . 1 . . Fabricator Hacks . | . . . . . . . Repair Station Hacks . | . . . . . . . Recycling Unit Hacks . | . . . . . . . Scanalyzer 4 | . . 4 . . . . Insert Component 2 | . . 2 . . . . Analyze 2 | . . 2 . . . . Garrison Access Hacks 2 | . . . 1 . 1 . Unlock Access 2 | . . . 1 . 1 . Unauthorized Hacks . | . . . . . . . Terminals . | . . . . . . . Fabricators . | . . . . . . . Repair Stations . | . . . . . . . Recycling Units . | . . . . . . . Scanalyzers . | . . . . . . . Garrison Access . | . . . . . . . Data Cores Recovered . | . . . . . . . Used . | . . . . . . . Hacking Detections 18 | . 2 5 4 2 4 1 Full Trace Events 5 | . . 1 2 1 . 1 Feedback Events . | . . . . . . . Feedback Blocked . | . . . . . . . Robot Schematics Acquired . | . . . . . . . Robots Built . | . . . . . . . Authchips . | . . . . . . . Time . | . . . . . . . Total Robot Build Rating . | . . . . . . . Part Schematics Acquired 3 | . . 3 . . . . Parts Built . | . . . . . . . Authchips . | . . . . . . . Time . | . . . . . . . Total Part Build Rating . | . . . . . . . Parts Repaired . | . . . . . . . Time . | . . . . . . . Parts Recycled . | . . . . . . . Recycled Matter . | . . . . . . . Retrieved Matter . | . . . . . . . Retrieved Components . | . . . . . . . Parts Scanalyzed 2 | . . 2 . . . . Part Schematics Acquired 2 | . . 2 . . . . Parts Damaged . | . . . . . . . Bothacking | -11 -10 -9 -8 -8 -8 -8 ------------ Run | Yrd Mat Mat Mat Gar Mat Gar Used RIF Installer . | . . . . . . . Robots Hacked . | . . . . . . . Non-combat . | . . . . . . . Combat . | . . . . . . . Robot Hacks Applied . | . . . . . . . Relay Couplers Released 6 | . . . . 6 . . Machine Destruction 6 | . . . . 6 . . Fabnet Peak Effective % . | . . . . . . . Robots Rewired . | . . . . . . . Allies Hacked . | . . . . . . . Hacks Repelled . | . . . . . . . Allies | -11 -10 -9 -8 -8 -8 -8 -------- Run | Yrd Mat Mat Mat Gar Mat Gar Total Allies . | . . . . . . . Largest Group . | . . . . . . . Highest-Rated Group . | . . . . . . . Highest-Rated Ally . | . . . . . . . Total Orders . | . . . . . . . Ally Attacks . | . . . . . . . Total Damage . | . . . . . . . Kills . | . . . . . . . Allies Corrupted . | . . . . . . . Allies Melted . | . . . . . . . Intel | -11 -10 -9 -8 -8 -8 -8 ------- Run | Yrd Mat Mat Mat Gar Mat Gar Robot Analysis Total 2 | . 2 . . . . . Derelict Logs Recovered . | . . . . . . . Drone Launches . | . . . . . . . Drone Recoveries . | . . . . . . . Exploration | -11 -10 -9 -8 -8 -8 -8 ------------- Run | Yrd Mat Mat Mat Gar Mat Gar Turns Passed 2441 | 111 137 463 409 1170 106 45 Spaces Moved 1555 | 67 175 268 254 454 255 82 Core 30 | 23 . 3 . 4 . . Treads 104 | . . 4 1 99 . . Legs . | . . . . . . . Wheels 914 | 44 83 227 253 307 . . Hover 126 | . 92 34 . . . . Flight 381 | . . . . 44 255 82 Fastest Speed 29 | 50 60 65 80 80 32 29 Average Speed 81 | 71 72 81 86 118 33 32 Slowest Speed 250 | 100 80 160 160 250 35 35 Overloaded Moves 18 | . . . . . . 18 Propulsion Burnouts . | . . . . . . . Robots Hopped 2 | . . . . . 1 1 Cave-ins Triggered . | . . . . . . . Exploration Rate (%) 25 | 4 38 24 15 41 30 28 Regions Visited 6 Branch Regions . Pre-discovered Areas . | . . . . . . . Known Exits Taken 2 | . . . 1 . 1 . Unknown Exits Taken 3 | 1 1 1 . . . . Scrap Searched . | . . . . . . . Spaces Dug 12 | . . . 1 11 . . Terrain Destroyed 15 | . . . 4 11 . . Melee 11 | . . . . 11 . . Projectile 4 | . . . 4 . . . AOE . | . . . . . . . Terrain Rammed . | . . . . . . . Walls Destroyed . | . . . . . . . Machines Disabled . | . . . . . . . Actions | -11 -10 -9 -8 -8 -8 -8 --------- Run | Yrd Mat Mat Mat Gar Mat Gar Total 2287 | 99 187 429 413 798 271 90 Wait 357 | . . 73 128 153 . 3 Move 1547 | 66 174 267 254 453 253 80 Hop 2 | . . . . . 1 1 Pick Up 27 | 5 5 8 2 5 2 . Fast Attach 40 | 6 1 10 6 9 7 1 Attach 16 | 2 2 6 . 5 1 . Detach 2 | . 1 1 . . . . Swap 14 | . . 3 . 11 . . Drop 40 | 2 4 11 5 12 6 . Fire 182 | 18 . 50 16 98 . . Melee 58 | . . . . 52 1 5 Ram . | . . . . . . . Kick . | . . . . . . . Crush 2 | . . . 2 . . . Escape Stasis . | . . . . . . . Rewire . | . . . . . . . Trap . | . . . . . . . Miscellaneous . | . . . . . . . Route ------- -11/Scrapyard -10/Materials -9/Materials (discovered 3 exits: *Mat / *Min x2) -8/Materials (discovered 2 exits: [*Sto] / Gar) -8/Garrison -8/Materials -8/Garrison (discovered 3 exits: [Mat x3]) History --------- Turn | Location | Event 26 | -11/Scrapyard | Discovered new exit (range 13) 112 | -11/Scrapyard | Entered Materials 244 | -10/Materials | Discovered new exit (range 9) 249 | -10/Materials | Entered another Materials area 249 | -9/Materials | Evolved 2 slots: Propulsion x1, Utility x1 305 | -9/Materials | Build established: Mutant 393 | -9/Materials | Discovered new exit (range 16) 512 | -9/Materials | Identified exit to Mines 651 | -9/Materials | Discovered new exit (range 17) 712 | -9/Materials | Entered another Materials area 712 | -8/Materials | Evolved 2 slots: Propulsion x1, Utility x1 947 | -8/Materials | Build established: Scavenger-Mutant 1110 | -8/Materials | Discovered new exit (range 10) 1121 | -8/Materials | Identified exit to Garrison 1121 | -8/Materials | Entered Garrison 1470 | -8/Garrison | Garrison Relay disabled 1660 | -8/Garrison | Discovered new exit (range 13) 1770 | -8/Garrison | Lost 3 parts (3n) 1776 | -8/Garrison | Triggered checkpoint 1842 | -8/Garrison | Learned Materials security intel 1923 | -8/Garrison | Garrison Relay disabled 2083 | -8/Garrison | Triggered checkpoint 2096 | -8/Garrison | Triggered checkpoint 2133 | -8/Garrison | Core integrity fell below 50% 2204 | -8/Garrison | Lost 9 parts (1p3n4u1w) 2209 | -8/Garrison | Core integrity fell below 20% 2291 | -8/Garrison | Entered Materials 2397 | -8/Materials | Identified exit to Garrison 2397 | -8/Materials | Entered Garrison 2399 | -8/Garrison | Discovered new exit (range 38) 2399 | -8/Garrison | Discovered new exit (range 90) 2399 | -8/Garrison | Discovered new exit (range 79) 2442 | -8/Garrison | Triggered checkpoint 2442 | -8/Garrison | Destroyed by Y-45 Defender with Heavy Assault Rifle Last Messages --------------- LOCATION=GARRISON GOAL=ESCAPE 02399_ Connecting with Garrison Terminal... 02399_ EXIT=FOUND >>Download(Registry) Retrieving Garrison registry... Downloaded map data. Downloaded component registry. Downloaded security status. 02399_ ALERT: Suspicious activity at Terminal G002. Transmitting hostile system tracking data. 02412_ Acquired Adv. System Shield. 02426_ Imp. Hover Unit destroyed. 02429_ Cesium-ion Thruster destroyed. 02441_ C-30 ARC bursts open, deploying its payload. 02441_ S-10 Pest unfolds itself. 02442_ Beams of light sweep through the air. An alarm sounds. Map ----- +----------------------------------------------------+ | ?????# #???????????????????????# #?# | | ?????# #???????????????????????#### ####?# | | ?????# #??????????????????????????## ####????# | | ?????# #?????????????????########### ######### | | ?????# #?????????????????# ^^ | | ?????# ############??????# ^^ | | ?????# + #??????# ^^ | | ?????# + #??????# #######++########## | | ?????# ### ##### #??????# #?????# #????????? | | ?????# #?# #???# #???#### ####### #????????? | | ?????# #?# #???# #???# + + #????????? | | ?????# #?# #???# #???# ## ####### #????????? | | ?????# #?# #???# #####+## #?????# #????????? | | ?????# #?# #???# ## ## #?????# #????????? | | ?????# ###+#####++##""""## #?????# #????????? | | ?????# ####### #????????? | | ?????# "+ #????????? | | ?????# s%+ #????????? | | ?????###T###+####^^^## ## "##########????????? | | ???????###?# ####^^^## ## ###???????????????? | | ???????????# + " " #???????????????? | | ???????######## " " #???????????????? | | ???????# + " " #???????????????? | | ???????# ###### " " #???????????????? | | ???????# #????### ## ## ###?????????????### | | ??????##+######## ## @## ################# | | ??????# ^^ | | ??????# ^^ ###### | | ??????# #####+## ^^ + ###" | | ??????# #???# ## ## ##+;####+#### ### #?# | | ??????# ##### ### ## Y Y## #??# #??# #?# #?# | | ??????# + ### ###+#### #??# #??# #?# #?## | | ??????# ##### + #?# #??# #??# #??# #?# #??? | | #####?# #???# ### #?# #??# #??# #??# ###+##?? | | + #?# #???# #?# #?# #??# #??# #??# ## #?? | | #"""### #####+### ### #??# #### #### ##"""### | | ^ + #??# " | | ^ #####??# + | | #"""### ############??????############ ######## | | # ### #????????????????????????????# #??????? | | """""## #????????????????????????????# #??##### | | ####### #????????????????????????????# #??#"""" | | ??????# #????????????????????????????# ####"!!] | | ??????# #????????????????????????????# ## | | ??????# #????????????????????????????# ## ++ | | ??????# #????????????????????????????# + + | | ??????# #????????????????????????????# " + | | ??????# #????????????????????????????# ## ++ | | ####### #????????????????????????????# ## | | #????????????????????????????# ####"!] | +----------------------------------------------------+ Best States ------------- Heat Dissipation 59 Energy Generation 14 Energy Capacity 265 Matter Stores 300 Matter Capacity 300 Sight Range 20 Terrain Scan Density 85 Additional Mass Support 9 Armor Coverage 150 Evasion (%) 64 Recoil Reduction 2 Defensive Hacking 14 Item Schematics ----------------- Sensor Array | -9/Materials | Scanalyzed Wheel | -9/Materials | Scanalyzed Propulsion Shielding | -9/Materials | Hacked Robot Schematics ------------------ None Fabricated ------------ Nothing Alien Tech Used ----------------- None Achievements -------------- None Challenges ------------ None Game ------ Seed SlugLatentAirjet Manual? 0 Play Time 00:28:10 Cumulative 57.8 hours Start 2024.04.07 @ 23:01:04 End 2024.04.07 @ 23:28:08 Sessions 1 Manual Loads 0 Difficulty Rogue Special Mode None Game No. 66 Rogue 66 Adventurer 0 Explorer 0 Win Type - Total 0 Types 0/0/0/0/0/0/0/0/0 Lore% 38 Gallery% 57 Achievement% 46 Wizard Run 0 Options --------- Layout 1 ASCII 0 Keyboard 0 Movement Numpad Keybinds 0 Fullscreen 1 Font 24/Smallcaps Map View 50x35 Zoom Use 0% Tactical HUD 1 Map Filters NONE Filters NONE Steam 1 RUN: 16015547-e8ae-4fad-af0e-da981acd1b88